bitfinex/quotes_BTCUSD_20241205
["timestamp","ask_amount","ask_price","bid_price","bid_amount"]
[1733433560352,0.013,99123.0,99122.0,0.201771]
[1733433560580,0.02,99123.0,99122.0,0.201771]
[1733433560837,0.013,99123.0,99122.0,0.201771]
[1733433561040,0.02,99123.0,99122.0,0.201771]
[1733433561494,0.02,99123.0,99122.0,0.20194608]
[1733433561706,0.014,99123.0,99122.0,0.20486839]
[1733433561911,0.014,99123.0,99122.0,0.50257476]
[1733433562117,0.00126071,99167.0,99135.0,0.201745]
[1733433562324,0.09967605,99159.0,99140.0,0.11714884]
[1733433562528,0.09707769,99173.0,99158.0,0.201697]
[1733433562747,0.09707769,99173.0,99140.0,0.11714884]
[1733433562748,0.09920431,99170.0,99155.0,0.201703]
[1733433562969,0.09920431,99170.0,99143.0,0.0496]
[1733433563201,0.00212662,99170.0,99151.0,0.201711]
[1733433563442,0.00212662,99170.0,99152.0,0.0010084]
[1733433563443,0.0008661,99170.0,99152.0,0.0010084]
[1733433563663,0.006,99159.0,99154.0,0.201705]
[1733433563863,0.006,99159.0,99151.0,0.20188608]
[1733433564073,0.006,99159.0,99151.0,0.00017508]
[1733433564283,0.19801428,99158.0,99151.0,0.00017508]
[1733433564500,0.09707769,99152.0,99151.0,0.00017508]
[1733433564705,0.19675374,99152.0,99151.0,0.00017508]
[1733433565801,0.09707769,99143.0,99112.0,0.00292231]
[1733433566020,0.09967605,99142.0,99126.0,0.00017508]
[1733433566225,0.10093692,99142.0,99126.0,0.00017508]
[1733433566450,0.00126086,99141.0,99126.0,0.00017508]
[1733433566652,0.09967605,99140.0,99126.0,0.00017508]
[1733433567404,0.03,99152.0,99126.0,0.00017508]
[1733433567405,0.007,99152.0,99130.0,0.11714884]
[1733433567548,0.09967605,99151.0,99139.0,0.201736]
[1733433567750,0.09967605,99151.0,99137.0,0.20174]
[1733433567960,0.146,99176.0,99140.0,0.11714884]
[1733433567961,0.09707769,99168.0,99140.0,0.11714884]
[1733433568173,0.09967605,99159.0,99141.0,0.00100847]
[1733433568396,0.09967605,99159.0,99142.0,0.00100848]
[1733433568579,0.09967605,99159.0,99145.0,0.201723]
[1733433568739,0.09967605,99159.0,99131.0,0.1]
[1733433568740,0.00126059,99173.0,99146.0,0.00100847]
[1733433568943,0.19494885,99169.0,99152.0,0.201709]
[1733433569144,0.10093657,99169.0,99152.0,0.201709]
[1733433569345,0.09967605,99169.0,99156.0,0.201702]
[1733433569576,0.09967605,99169.0,99159.0,0.11714884]
[1733433569750,0.09401228,99184.0,99160.0,0.00100834]
[1733433570089,0.0805,99198.0,99152.0,0.0765]
[1733433570090,0.0068661,99170.0,99152.0,0.0765]
[1733433570441,0.0068661,99170.0,99161.0,0.201692]
[1733433570656,0.0068661,99170.0,99152.0,0.0765]
[1733433570657,0.09401228,99164.0,99152.0,0.00017508]
[1733433570857,0.10093665,99163.0,99152.0,0.00017508]
[1733433571399,0.10093665,99163.0,99152.0,0.00117508]
[1733433571803,0.09967605,99163.0,99154.0,0.201706]
[1733433572025,0.008,99169.0,99159.0,0.001]
[1733433572231,0.09967605,99168.0,99159.0,0.001]
[1733433572439,0.008,99169.0,99159.0,0.001]
[1733433572645,0.0008661,99170.0,99167.0,0.201679]
[1733433573081,0.0008661,99170.0,99167.0,0.403358]
[1733433574461,0.001,99169.0,99167.0,0.201679]
[1733433574668,0.001,99169.0,99168.0,0.00100826]
[1733433575110,0.0008661,99170.0,99169.0,0.201675]
[1733433575319,0.0028661,99170.0,99169.0,0.201675]
[1733433575518,0.0028661,99170.0,99169.0,0.20766272]
[1733433575754,0.0028661,99170.0,99169.0,0.201675]
[1733433575905,0.10054215,99170.0,99152.0,0.00017508]
[1733433576121,0.11099075,99169.0,99168.0,0.002]
[1733433576676,0.09967605,99169.0,99168.0,0.002]
[1733433576884,0.0008661,99170.0,99169.0,0.201675]
[1733433577729,0.0008661,99170.0,99169.0,0.206675]
[1733433577935,0.0008661,99170.0,99169.0,0.201675]
[1733433578353,0.0028661,99170.0,99169.0,0.204675]
[1733433578803,0.0008661,99170.0,99169.0,0.204675]
[1733433579021,0.0008661,99170.0,99169.0,0.203675]
[1733433579430,0.0008661,99170.0,99169.0,0.204675]
[1733433579917,0.0008661,99170.0,99169.0,0.206675]
[1733433580790,0.0008661,99170.0,99169.0,0.279075]
[1733433581005,0.0008661,99170.0,99169.0,0.282075]
[1733433581220,0.0008661,99170.0,99169.0,0.280075]
[1733433581667,0.0008661,99170.0,99169.0,0.285075]
[1733433582115,0.0008661,99170.0,99169.0,0.283075]
[1733433582588,0.0008661,99170.0,99169.0,0.285075]
[1733433583031,0.0008661,99170.0,99169.0,0.283075]
[1733433583281,0.0008661,99170.0,99169.0,0.285075]
[1733433583937,0.0008661,99170.0,99169.0,0.279075]
[1733433584175,0.0008661,99170.0,99169.0,0.282075]
[1733433584631,0.0008661,99170.0,99169.0,0.280075]
[1733433584856,0.0008661,99170.0,99169.0,0.282075]
[1733433585316,0.0008661,99170.0,99169.0,0.003]
[1733433585539,0.0008661,99170.0,99163.0,0.403373]
[1733433585757,0.0008661,99170.0,99169.0,0.005]
[1733433586462,0.0008661,99170.0,99169.0,0.00600822]
[1733433586676,0.0008661,99170.0,99169.0,0.00400822]
[1733433587103,0.0008661,99170.0,99169.0,0.00100822]
[1733433587339,0.0008661,99170.0,99168.0,0.00100817]
[1733433587576,0.0008661,99170.0,99167.0,0.20766672]
[1733433587577,0.0008661,99170.0,99169.0,0.24988313]
[1733433587785,0.0008661,99170.0,99169.0,0.25486272]
[1733433588013,0.0008661,99170.0,99169.0,0.33446272]
[1733433588221,1e-07,99170.0,99169.0,0.68413877]
[1733433588658,0.0008684,99210.0,99181.0,0.00598772]
[1733433588883,0.09967605,99209.0,99182.0,0.00100798]
[1733433589132,0.09967605,99209.0,99197.0,0.201617]
[1733433589578,0.09967605,99209.0,99182.0,0.00598772]
[1733433589795,0.09967605,99209.0,99203.0,0.201606]
[1733433590050,0.09967605,99209.0,99199.0,0.201614]
[1733433590269,0.10025893,99209.0,99199.0,0.201614]
[1733433590898,0.10025893,99209.0,99195.0,0.201621]
[1733433591113,0.10025893,99209.0,99191.0,0.01989056]
[1733433591327,0.10025893,99209.0,99199.0,0.201614]
[1733433591531,0.10025893,99209.0,99191.0,0.01989056]
[1733433591735,0.00058288,99209.0,99192.0,0.00100793]
[1733433591946,0.09967605,99208.0,99192.0,0.00100793]
[1733433592168,0.09401228,99203.0,99171.0,0.00598772]
[1733433592383,0.10093615,99202.0,99172.0,0.03192215]
[1733433592586,0.10093615,99202.0,99183.0,0.201646]
[1733433592798,0.14166025,99202.0,99191.0,0.002]
[1733433593017,0.14166025,99202.0,99191.0,0.004]
[1733433593218,0.10093615,99202.0,99191.0,0.004]
[1733433593419,0.09967605,99202.0,99191.0,0.004]
[1733433593630,0.09967605,99202.0,99192.0,0.201629]
[1733433593872,0.09967605,99202.0,99191.0,0.205631]
[1733433593873,0.00058288,99209.0,99191.0,0.004]
[1733433594049,0.09967605,99201.0,99191.0,0.002]
[1733433594271,0.00996761,99200.0,99192.0,0.201629]
[1733433594487,0.09967605,99200.0,99190.0,0.201631]
[1733433595179,0.09967605,99200.0,99192.0,0.001]
[1733433595381,0.09967605,99200.0,99190.0,0.201631]
[1733433595584,0.09967605,99200.0,99192.0,0.001]
[1733433596001,0.09967605,99200.0,99190.0,0.201631]
[1733433596153,0.09967605,99200.0,99190.0,0.202631]
[1733433596561,0.09967605,99200.0,99190.0,0.001]
[1733433596789,0.09967605,99199.0,99190.0,0.001]
[1733433597036,0.19368833,99199.0,99190.0,0.001]
[1733433597223,0.00126009,99198.0,99190.0,0.003]
[1733433597351,0.09967605,99197.0,99190.0,0.003]
[1733433597557,0.09967605,99197.0,99190.0,0.002]
[1733433597994,0.09967605,99197.0,99192.0,0.001]
[1733433598563,0.09967605,99197.0,99181.0,0.201651]
[1733433598729,0.10067605,99197.0,99181.0,0.201651]
[1733433599171,0.10067605,99197.0,99172.0,0.201668]
[1733433599172,0.40450215,99196.0,99172.0,0.201668]
[1733433599382,0.1798431,99195.0,99174.0,0.201665]
[1733433599770,0.3814661,99195.0,99174.0,0.201665]
[1733433599977,0.3814661,99195.0,99173.0,0.01992895]
[1733433599978,0.09527243,99194.0,99156.0,0.0791]
[1733433600187,0.201637,99188.0,99167.0,0.201678]
[1733433600377,0.10093633,99187.0,99168.0,0.0309911]
[1733433600723,0.30257533,99187.0,99168.0,0.0309911]
[1733433600918,0.201641,99186.0,99181.0,0.001]
[1733433601125,0.09967605,99185.0,99164.0,0.201685]
[1733433601329,0.09967605,99185.0,99172.0,0.003]
[1733433601555,0.201659,99177.0,99172.0,0.003]
[1733433601810,0.09967605,99176.0,99150.0,0.001732]
[1733433602041,0.09967605,99176.0,99157.0,0.02019502]
[1733433602270,0.00126034,99185.0,99158.0,0.03204786]
[1733433602473,0.09967605,99184.0,99159.0,0.03103959]
[1733433602776,0.09967605,99184.0,99167.0,0.201678]
[1733433603190,0.201647,99183.0,99159.0,0.00017508]
[1733433603331,0.201666,99174.0,99160.0,0.03106493]
[1733433603546,0.11984265,99173.0,99160.0,0.03106493]
[1733433603756,0.11984265,99173.0,99159.0,0.00017508]
[1733433604355,0.09967605,99173.0,99167.0,0.001]
[1733433604564,0.09967605,99173.0,99159.0,0.00017508]
[1733433604772,0.09967605,99173.0,99163.0,0.201687]
[1733433604978,0.09967605,99173.0,99159.0,0.00017508]
[1733433604979,0.09967605,99173.0,99159.0,0.00117508]
[1733433605179,0.09967605,99173.0,99160.0,0.03107055]
[1733433605425,0.10964366,99173.0,99160.0,0.03107055]
[1733433605608,0.10964366,99173.0,99161.0,0.201692]
[1733433606026,0.10964366,99173.0,99159.0,0.00017508]
[1733433606241,0.201675,99169.0,99159.0,0.00017508]
[1733433606473,0.09967605,99168.0,99159.0,0.00017508]
[1733433606698,0.03113117,99167.0,99159.0,0.00017508]
[1733433606935,0.03113117,99167.0,99159.0,0.00117508]
[1733433607540,0.03113117,99167.0,99159.0,0.00217508]
[1733433607744,0.09967605,99166.0,99159.0,0.00117508]
[1733433607950,0.02248195,99165.0,99159.0,0.00117508]
[1733433608158,0.201693,99161.0,99159.0,0.00217508]
[1733433608391,0.09967605,99160.0,99159.0,0.00217508]
[1733433608592,0.09967605,99160.0,99159.0,0.00317508]
[1733433609066,0.32519875,99160.0,99159.0,0.00317508]
[1733433609265,0.32519875,99160.0,99159.0,0.00217508]
[1733433609468,0.32519875,99160.0,99159.0,0.00317508]
[1733433609672,0.30137005,99160.0,99159.0,0.00117508]
[1733433610145,0.30137005,99160.0,99159.0,0.00217508]
[1733433610354,0.30137005,99160.0,99159.0,0.00117508]
[1733433610562,0.30137005,99160.0,99159.0,0.00217508]
[1733433611495,0.41838233,99160.0,99159.0,0.00217508]
[1733433611691,0.48038916,99160.0,99159.0,0.00217508]
[1733433612082,0.55698916,99160.0,99159.0,0.00217508]
[1733433612299,0.49498233,99160.0,99159.0,0.00217508]
[1733433614028,0.49498233,99160.0,99159.0,0.00117508]
[1733433614306,0.29328833,99160.0,99159.0,0.00117508]
[1733433614521,0.21668833,99160.0,99159.0,0.00117508]
[1733433614721,0.22568833,99160.0,99159.0,0.00217508]
[1733433615158,0.21668833,99160.0,99159.0,0.00017508]
[1733433615607,0.24855618,99160.0,99159.0,0.00117508]
[1733433615819,0.22568833,99160.0,99159.0,0.00117508]
[1733433616035,0.21668833,99160.0,99159.0,0.00017508]
[1733433616261,0.41838233,99160.0,99159.0,0.00017508]
[1733433616730,0.49598233,99160.0,99159.0,0.00017508]
[1733433617406,0.50498233,99160.0,99159.0,0.00217508]
[1733433617618,0.50498233,99160.0,99159.0,0.00117508]
[1733433617832,0.59390155,99160.0,99159.0,0.00117508]
[1733433618038,0.59390155,99160.0,99159.0,0.00217508]
[1733433618271,0.60290155,99160.0,99159.0,0.00217508]
[1733433622532,0.75290155,99160.0,99159.0,0.00217508]
[1733433624455,0.65498233,99160.0,99159.0,0.00217508]
[1733433624794,0.37568833,99160.0,99159.0,0.00217508]
[1733433625101,0.22568833,99160.0,99159.0,0.00217508]
[1733433625763,0.10867605,99160.0,99159.0,0.00217508]
[1733433626229,0.009,99160.0,99159.0,0.08527508]
[1733433626465,0.009,99160.0,99159.0,0.13458339]
[1733433626690,0.000866,99170.0,99159.0,0.13458339]
[1733433626691,0.000866,99170.0,99169.0,0.201675]
[1733433626905,0.009,99160.0,99159.0,0.08427508]
[1733433627116,0.009,99160.0,99159.0,0.08527508]
[1733433627336,0.009,99160.0,99159.0,0.08427508]
[1733433627548,0.09967605,99160.0,99159.0,0.00217508]
[1733433627753,0.09967605,99160.0,99159.0,0.00317508]
[1733433628416,0.09967605,99160.0,99159.0,0.00217508]
[1733433629336,0.000866,99170.0,99160.0,0.201694]
[1733433629570,0.09401228,99168.0,99159.0,0.00217508]
[1733433629798,0.09967605,99167.0,99160.0,0.201694]
[1733433630276,0.09967605,99167.0,99159.0,0.20187108]
[1733433630277,0.005,99160.0,99159.0,0.20187108]
[1733433630954,0.000866,99170.0,99169.0,0.201675]
[1733433631385,0.000866,99170.0,99163.0,0.201686]
[1733433631621,0.000866,99170.0,99167.0,0.201679]
[1733433632295,0.000866,99170.0,99167.0,0.403358]
[1733433632594,0.000866,99170.0,99169.0,0.201675]
[1733433633037,0.000866,99170.0,99167.0,0.201679]
[1733433633477,0.000866,99170.0,99167.0,0.403358]
[1733433633937,0.000866,99170.0,99169.0,0.002]
[1733433634171,0.000866,99170.0,99169.0,0.00300825]
[1733433634385,0.000866,99170.0,99169.0,0.00100825]
[1733433635024,0.000866,99170.0,99169.0,0.07940825]
[1733433635244,0.000866,99200.0,99170.0,0.201673]
[1733433635450,0.000866,99200.0,99172.0,0.0784]
[1733433635651,0.000866,99200.0,99189.0,0.280035]
[1733433636080,0.000866,99200.0,99189.0,0.2795812]
[1733433636572,0.000866,99200.0,99189.0,0.27910503]
[1733433636977,0.000866,99200.0,99189.0,0.27928011]
[1733433638294,0.003866,99190.0,99189.0,0.27928011]
[1733433639589,0.000866,99190.0,99189.0,0.27928011]
[1733433639802,0.003866,99190.0,99189.0,0.27928011]
[1733433642457,0.000866,99190.0,99189.0,0.27928011]
[1733433642897,0.000866,99190.0,99189.0,0.28128011]
[1733433643518,0.000866,99190.0,99189.0,0.27030711]
[1733433643755,0.000866,99190.0,99189.0,0.00317508]
[1733433644497,0.10054205,99190.0,99189.0,0.00317508]
[1733433645742,0.000866,99190.0,99189.0,0.00017508]
[1733433646166,0.006866,99190.0,99189.0,0.08388313]
[1733433646375,0.006866,99190.0,99189.0,0.08287508]
[1733433646602,0.000866,99190.0,99189.0,0.08287508]
[1733433647011,0.000866,99190.0,99189.0,0.08387508]
[1733433647241,0.000866,99190.0,99189.0,0.08587508]
[1733433647469,0.000866,99190.0,99189.0,0.08287508]
[1733433648647,0.000866,99190.0,99189.0,0.08388308]
[1733433648859,0.000866,99190.0,99189.0,0.08588308]
[1733433649070,0.000866,99190.0,99189.0,0.08688308]
[1733433649899,0.000866,99190.0,99189.0,0.13628308]
[1733433650580,0.000866,99190.0,99189.0,0.1422708]
[1733433651893,0.000866,99200.0,99199.0,0.201614]
[1733433653047,0.000866,99200.0,99199.0,0.283714]
[1733433653252,0.001866,99200.0,99199.0,0.283714]
[1733433653475,0.09487878,99230.0,99209.0,0.201594]
[1733433653476,4e-07,99210.0,99209.0,0.201594]
[1733433653703,4e-07,99210.0,99209.0,0.28438172]
[1733433653929,4e-07,99210.0,99209.0,0.41527352]
[1733433654155,4e-07,99210.0,99209.0,0.38438172]
[1733433655668,4e-07,99210.0,99209.0,0.39338172]
[1733433656168,4e-07,99210.0,99209.0,0.39838172]
[1733433656391,4e-07,99210.0,99209.0,0.49805777]
[1733433657479,4e-07,99210.0,99209.0,0.52894473]
[1733433658346,4e-07,99210.0,99209.0,0.67894473]
[1733433659127,0.0008665,99230.0,99229.0,0.201553]
[1733433660120,0.0008665,99230.0,99229.0,0.282253]
[1733433660263,0.0008665,99230.0,99229.0,0.284253]
[1733433660464,0.00144974,99230.0,99229.0,0.285253]
[1733433660672,0.00144974,99230.0,99229.0,0.56716639]
[1733433660898,7.4e-07,99230.0,99229.0,0.56716639]
[1733433661461,7.4e-07,99230.0,99229.0,0.56516639]
[1733433661717,7.4e-07,99230.0,99229.0,0.71416639]
[1733433661885,7.4e-07,99230.0,99229.0,0.71258614]
[1733433662302,7.4e-07,99230.0,99229.0,0.70558614]
[1733433662675,7.4e-07,99230.0,99229.0,0.71317336]
[1733433663653,7.4e-07,99230.0,99229.0,0.34650536]
[1733433663867,7.4e-07,99230.0,99229.0,0.98650536]
[1733433664657,7.4e-07,99230.0,99229.0,0.34650536]
[1733433665566,7.4e-07,99230.0,99229.0,0.3774131]
[1733433666612,7.4e-07,99230.0,99229.0,0.48307687]
[1733433666838,7.4e-07,99230.0,99229.0,0.73307687]
[1733433667092,0.0008684,99250.0,99249.0,0.280713]
[1733433667966,0.0008684,99250.0,99249.0,0.3116072]
[1733433668409,0.0008684,99250.0,99249.0,0.3126072]
[1733433668859,4e-07,99250.0,99249.0,0.41827097]
[1733433669085,4e-07,99250.0,99249.0,0.58358258]
[1733433669317,4e-07,99250.0,99249.0,0.58258258]
[1733433669526,4e-07,99250.0,99249.0,0.59058258]
[1733433669964,4e-07,99250.0,99249.0,0.58458258]
[1733433670169,4e-07,99250.0,99249.0,0.73258258]
[1733433670592,4e-07,99250.0,99249.0,0.73658258]
[1733433670804,0.0008661,99280.0,99259.0,0.201493]
[1733433671041,0.0008661,99280.0,99259.0,0.38076905]
[1733433671500,0.0008661,99280.0,99269.0,0.201472]
[1733433672152,0.0008661,99280.0,99269.0,0.20164708]
[1733433672990,0.0018676,99270.0,99269.0,0.20164708]
[1733433673423,0.0008676,99270.0,99269.0,0.20764708]
[1733433673901,0.0008676,99270.0,99269.0,0.20964708]
[1733433675661,0.0008676,99270.0,99269.0,0.22971105]
[1733433676808,0.0008676,99270.0,99269.0,0.02823905]
[1733433677033,0.0008676,99270.0,99269.0,0.0292463]
[1733433677238,0.0008676,99270.0,99269.0,0.02823905]
[1733433677947,0.0768676,99270.0,99269.0,0.00817508]
[1733433678156,0.0008676,99270.0,99269.0,0.00617508]
[1733433678602,0.0008676,99270.0,99269.0,0.00717508]
[1733433678822,0.0008676,99270.0,99269.0,0.20864708]
[1733433679042,0.0008676,99270.0,99269.0,0.20764708]
[1733433679302,0.0008676,99270.0,99269.0,0.00017508]
[1733433679515,0.0008676,99270.0,99269.0,0.20364708]
[1733433680569,0.0008676,99270.0,99269.0,0.00217508]
[1733433680781,0.0008676,99270.0,99269.0,0.20364708]
[1733433681232,0.0008676,99270.0,99269.0,0.00217508]
[1733433681670,0.23955593,99270.0,99269.0,0.00217508]
[1733433681900,0.32115593,99270.0,99269.0,0.00217508]
[1733433682129,0.19455593,99270.0,99269.0,0.00217508]
[1733433682753,0.19455593,99270.0,99269.0,0.00017508]
[1733433683135,0.19455593,99270.0,99269.0,0.00217508]
[1733433683350,0.19455593,99270.0,99269.0,0.00017508]
[1733433685588,0.21881522,99270.0,99269.0,0.00017508]
[1733433685798,0.21755593,99270.0,99269.0,0.00017508]
[1733433686785,0.19455593,99270.0,99269.0,0.00017508]
[1733433688075,0.0008676,99270.0,99269.0,0.00017508]
[1733433688504,0.0008676,99270.0,99269.0,0.0311468]
[1733433688710,0.0008676,99270.0,99269.0,0.00017508]
[1733433688916,0.0008676,99270.0,99269.0,0.0311468]
[1733433689134,0.0008676,99270.0,99269.0,0.00017508]
[1733433689815,0.0008676,99270.0,99269.0,0.00317508]
[1733433690027,0.0008676,99270.0,99269.0,0.20464708]
[1733433690468,0.0008676,99270.0,99269.0,0.23562065]
[1733433693369,0.0008676,99270.0,99269.0,0.22562065]
[1733433693788,0.0008676,99270.0,99269.0,0.03097357]
[1733433693998,0.0008676,99270.0,99261.0,0.03097357]
[1733433694206,0.0008676,99270.0,99261.0,0.03114906]
[1733433694405,0.0008676,99270.0,99263.0,0.201484]
[1733433694612,0.0644461,99276.0,99264.0,0.03097357]
[1733433695439,0.0644461,99269.0,99264.0,0.03097357]
[1733433695644,0.0644461,99269.0,99261.0,0.00517549]
[1733433695645,0.0644461,99269.0,99265.0,0.03097357]
[1733433695862,0.0644461,99269.0,99261.0,0.00217549]
[1733433696121,0.06383109,99269.0,99264.0,0.003]
[1733433696289,0.06383109,99269.0,99261.0,0.00017549]
[1733433696290,0.06383109,99269.0,99265.0,0.03100979]
[1733433696507,0.06383109,99269.0,99261.0,0.00017549]
[1733433696818,0.06383109,99269.0,99264.0,0.003]
[1733433697019,0.06383109,99269.0,99265.0,0.03102353]
[1733433697197,0.10093514,99275.0,99265.0,0.03102353]
[1733433697396,0.10093514,99275.0,99266.0,0.03102353]
[1733433697600,0.10093514,99275.0,99261.0,0.00017549]
[1733433697815,0.10093514,99275.0,99262.0,0.03102896]
[1733433698571,0.09967605,99275.0,99262.0,0.03102896]
[1733433699333,0.09967605,99275.0,99262.0,0.03202896]
[1733433699559,0.0008661,99280.0,99263.0,0.03102896]
[1733433699772,0.09967605,99279.0,99264.0,0.20248926]
[1733433699990,0.09967605,99279.0,99265.0,0.03102896]
[1733433700187,0.09967605,99279.0,99266.0,0.201478]
[1733433700334,0.09967605,99279.0,99267.0,0.03102896]
[1733433700738,0.09967605,99279.0,99268.0,0.03102896]
[1733433700937,0.09967605,99279.0,99265.0,0.20148]
[1733433700938,0.09967605,99279.0,99269.0,0.03102896]
[1733433701166,0.09967605,99279.0,99265.0,0.20148]
[1733433701430,0.09967605,99279.0,99266.0,0.03105209]
[1733433701647,0.09967605,99279.0,99268.0,0.201474]
[1733433701878,0.0008661,99280.0,99269.0,0.03205934]
[1733433702120,0.0008661,99280.0,99277.0,0.19752449]
[1733433702329,0.0008661,99280.0,99279.0,0.201452]
[1733433702544,0.0008661,99280.0,99279.0,0.31220409]
[1733433702883,0.0008661,99280.0,99279.0,0.7490014]
[1733433703109,0.0008661,99280.0,99279.0,0.61564676]
[1733433704197,0.0008661,99280.0,99279.0,0.61664676]
[1733433704381,0.0008661,99280.0,99279.0,0.83970462]
[1733433704580,0.000866,99310.0,99288.0,0.201432]
[1733433704823,0.000866,99310.0,99289.0,0.03205906]
[1733433704968,0.023,99299.0,99289.0,0.03205906]
[1733433705538,0.023,99299.0,99289.0,0.12129555]
[1733433706617,0.023,99299.0,99289.0,0.12128443]
[1733433707039,0.10054205,99290.0,99289.0,0.03105209]
[1733433707237,0.10054205,99290.0,99273.0,0.08922537]
[1733433707238,0.023,99289.0,99273.0,0.08922537]
[1733433707383,0.10093504,99288.0,99274.0,0.03101592]
[1733433707602,0.04343095,99290.0,99272.0,0.08922537]
[1733433707603,0.023,99287.0,99275.0,0.03101592]
[1733433707778,0.023,99289.0,99272.0,0.10940457]
[1733433707982,0.023,99289.0,99273.0,0.03103537]
[1733433708207,0.023,99287.0,99273.0,0.03103537]
[1733433708466,0.023,99285.0,99273.0,0.001]
[1733433708809,0.023,99283.0,99273.0,0.001]
[1733433709133,0.023,99281.0,99275.0,0.003]
[1733433709334,0.023,99279.0,99275.0,0.003]
[1733433709989,0.023,99279.0,99270.0,0.005]
[1733433710193,0.023,99279.0,99273.0,0.001]
[1733433710863,0.09967605,99278.0,99273.0,0.001]
[1733433711065,0.224458,99277.0,99273.0,0.001]
[1733433711272,0.10093521,99276.0,99273.0,0.001]
[1733433711397,0.023,99275.0,99273.0,0.001]
[1733433711604,0.09967605,99274.0,99273.0,0.001]
[1733433711801,0.12267605,99274.0,99273.0,0.001]
[1733433712225,0.12267605,99274.0,99270.0,0.005]
[1733433712226,0.023,99273.0,99270.0,0.005]
[1733433712450,0.023,99271.0,99270.0,0.005]
[1733433712750,0.12267605,99271.0,99270.0,0.005]
[1733433713275,0.46005114,99271.0,99270.0,0.005]
[1733433713484,0.52628353,99271.0,99270.0,0.005]
[1733433714552,0.52628353,99271.0,99270.0,0.006731]
[1733433715756,0.67628353,99271.0,99270.0,0.006731]
[1733433717559,0.57478353,99271.0,99270.0,0.006731]
[1733433718569,0.42478353,99271.0,99270.0,0.006731]
[1733433718747,0.44778353,99271.0,99270.0,0.006731]
[1733433719948,0.12267605,99271.0,99270.0,0.006731]
[1733433720352,0.023,99271.0,99270.0,0.006731]
[1733433720557,0.18650714,99271.0,99270.0,0.006731]
[1733433721168,0.08683109,99271.0,99270.0,0.006731]
[1733433721603,0.023,99274.0,99270.0,0.006731]
[1733433721803,0.08683109,99271.0,99270.0,0.006731]
[1733433722005,0.023,99271.0,99270.0,0.006731]
[1733433722218,0.09967605,99273.0,99270.0,0.006731]
[1733433722428,0.09967605,99273.0,99271.0,0.0754]
[1733433722625,0.06383109,99282.0,99271.0,0.0754]
[1733433723684,0.023,99281.0,99271.0,0.0754]
[1733433724651,0.023,99281.0,99271.0,0.0784]
[1733433725172,0.023,99281.0,99271.0,0.0754]
[1733433725371,0.023,99281.0,99271.0,0.0784]
[1733433725926,0.023,99285.0,99271.0,0.259721]
[1733433726151,0.023,99285.0,99273.0,0.0895663]
[1733433726531,0.023,99285.0,99274.0,0.0895663]
[1733433726734,0.023,99287.0,99274.0,0.0895663]
[1733433726946,0.023,99285.0,99274.0,0.0895663]
[1733433727793,0.023,99281.0,99274.0,0.0895663]
[1733433728211,0.023,99283.0,99274.0,0.08931945]
[1733433728417,0.023,99282.0,99274.0,0.08931945]
[1733433728589,0.023,99286.0,99274.0,0.08931945]
[1733433728820,0.023,99286.0,99275.0,0.08931945]
[1733433729024,0.023,99286.0,99274.0,0.08931945]
[1733433729226,0.023,99286.0,99274.0,0.09231945]
[1733433729373,0.023,99286.0,99276.0,0.08931945]
[1733433730177,0.000866,99290.0,99277.0,0.08931945]
[1733433730384,0.023,99288.0,99277.0,0.08931945]
[1733433730616,0.000866,99290.0,99279.0,0.27062645]
[1733433730868,0.000866,99290.0,99281.0,0.27062245]
[1733433731082,0.000866,99290.0,99282.0,0.0010071]
[1733433731316,0.000866,99290.0,99283.0,0.0010071]
[1733433731517,0.000866,99290.0,99284.0,0.181298]
[1733433732168,0.000866,99290.0,99285.0,0.260896]
[1733433732386,0.000866,99290.0,99287.0,0.181292]
[1733433732601,0.000866,99290.0,99289.0,0.1786389]
[1733433732800,0.000866,99290.0,99289.0,0.52289754]
[1733433732999,0.000866,99290.0,99289.0,0.52012452]
[1733433733208,0.000866,99290.0,99289.0,0.43743019]
[1733433733499,0.000866,99290.0,99289.0,0.64691157]
[1733433733659,0.000866,99290.0,99289.0,0.43743019]
[1733433733868,0.000866,99290.0,99289.0,0.39103019]
[1733433734161,0.000866,99290.0,99289.0,0.39058184]
[1733433734610,0.00018079,99290.0,99289.0,0.39058184]
[1733433735094,0.00018079,99290.0,99289.0,0.39711501]
[1733433735313,0.00018079,99290.0,99289.0,0.53094324]
[1733433735510,0.00018079,99290.0,99289.0,0.52493812]
[1733433735727,0.00018079,99290.0,99289.0,0.46817038]
[1733433735940,0.00018079,99290.0,99289.0,0.47117038]
[1733433736084,0.00018079,99290.0,99289.0,0.46817038]
[1733433736454,0.00018079,99290.0,99289.0,0.47317038]
[1733433736651,0.00018079,99290.0,99289.0,0.47617038]
[1733433737069,0.000866,99310.0,99289.0,0.47617038]
[1733433737070,0.224371,99319.0,99289.0,0.47617038]
[1733433737289,0.0099231,99309.0,99297.0,0.08914849]
[1733433737484,0.12267605,99308.0,99297.0,0.08914849]
[1733433737684,0.12267605,99308.0,99296.0,0.08914849]
[1733433737988,0.12267605,99308.0,99297.0,0.08914849]
[1733433738343,0.12267605,99308.0,99297.0,0.02003396]
[1733433738560,0.12267605,99308.0,99297.0,0.02520945]
[1733433738754,0.12267605,99308.0,99297.0,0.02020945]
[1733433739127,0.12267605,99308.0,99297.0,0.02520945]
[1733433739336,0.12267605,99308.0,99297.0,0.02620945]
[1733433739959,0.12267605,99308.0,99297.0,0.11538177]
[1733433740207,0.12267605,99308.0,99297.0,0.02620945]
[1733433740754,0.201384,99313.0,99298.0,0.00100697]
[1733433740964,0.023,99310.0,99297.0,0.00617549]
[1733433741114,0.023,99308.0,99297.0,0.00617549]
[1733433741529,0.023,99310.0,99297.0,0.00617549]
[1733433741742,0.023,99311.0,99297.0,0.00617549]
[1733433741897,0.09967605,99311.0,99297.0,0.00017549]
[1733433742111,0.023,99310.0,99298.0,0.001]
[1733433742578,0.023,99310.0,99297.0,0.00417549]
[1733433743017,0.023,99310.0,99297.0,0.00517549]
[1733433743473,0.023,99310.0,99297.0,0.00417549]
[1733433743841,0.023,99310.0,99298.0,0.00100695]
[1733433744049,0.023,99314.0,99298.0,0.00100695]
[1733433744308,0.023,99315.0,99298.0,0.00500695]
[1733433744481,0.023,99315.0,99298.0,0.18627695]
[1733433744717,0.023,99315.0,99299.0,0.0777]
[1733433744929,0.023,99320.0,99300.0,0.00079444]
[1733433745111,0.023,99318.0,99299.0,0.0777]